[Event "*** Titled Tuesday Blitz"]
[Site "Chess.com"]
[Date "2020.05.12"]
[Round "3"]
[White "attack2mateU"]
[Black "swimmerchess"]
[Result "0-1"]
[WhiteElo "2619"]
[BlackElo "2832"]
[TimeControl "180+1"]
[EndTime "10:29:31 PDT"]
[Termination "swimmerchess won by resignation"]

1. e4 {[%clk 0:03:00.9]} 1... e5 {[%clk 0:02:59.4]} 2. Nf3 {[%clk 0:03:00.4]}
2... Nc6 {[%clk 0:02:59.5]} 3. Bb5 {[%clk 0:02:59.9]} 3... a6 {[%clk 0:02:59.2]}
4. Ba4 {[%clk 0:02:59.8]} 4... Nf6 {[%clk 0:02:59.6]} 5. O-O {[%clk 0:02:59.7]}
5... Be7 {[%clk 0:03:00]} 6. Re1 {[%clk 0:02:59.6]} 6... b5 {[%clk 0:03:00.5]}
7. Bb3 {[%clk 0:02:59.7]} 7... d6 {[%clk 0:03:01.4]} 8. c3 {[%clk 0:02:58.8]}
8... O-O {[%clk 0:03:02]} 9. h3 {[%clk 0:02:58.6]} 9... Bb7 {[%clk 0:03:02.9]}
10. d4 {[%clk 0:02:57.5]} 10... Re8 {[%clk 0:03:02.6]} 11. a3 {[%clk 0:02:55.8]}
11... Bf8 {[%clk 0:03:01.5]} 12. Nbd2 {[%clk 0:02:55.1]} 12... h6 {[%clk
0:03:01.4]} 13. Bc2 {[%clk 0:02:53.4]} 13... Nb8 {[%clk 0:03:01]} 14. a4 {[%clk
0:02:33.2]} 14... Nbd7 {[%clk 0:02:59.1]} 15. Bd3 {[%clk 0:02:31.9]} 15... c6
{[%clk 0:02:38.6]} 16. b3 {[%clk 0:02:28.8]} 16... g6 {[%clk 0:02:34.8]} 17. Bb2
{[%clk 0:02:13.7]} 17... Nh5 {[%clk 0:02:33.2]} 18. g3 {[%clk 0:01:57.8]} 18...
Ng7 {[%clk 0:02:29.4]} 19. Qc2 {[%clk 0:01:25.6]} 19... Ne6 {[%clk 0:02:28.6]}
20. Bf1 {[%clk 0:01:25.7]} 20... Bg7 {[%clk 0:02:27.9]} 21. h4 {[%clk
0:01:25.7]} 21... Qb6 {[%clk 0:02:25.8]} 22. a5 {[%clk 0:01:24.3]} 22... Qa7
{[%clk 0:02:21.6]} 23. Bh3 {[%clk 0:01:17]} 23... Rad8 {[%clk 0:02:13.7]} 24.
Rad1 {[%clk 0:01:05.1]} 24... b4 {[%clk 0:01:42.6]} 25. Nc4 {[%clk 0:00:50.7]}
25... bxc3 {[%clk 0:01:40.4]} 26. Bxc3 {[%clk 0:00:51.6]} 26... exd4 {[%clk
0:01:26.1]} 27. Nxd6 {[%clk 0:00:50.9]} 27... dxc3 {[%clk 0:01:12.6]} 28. Nxe8
{[%clk 0:00:49.4]} 28... Nd4 {[%clk 0:01:12.7]} 29. Nxd4 {[%clk 0:00:42.4]}
29... Bxd4 {[%clk 0:01:13.6]} 30. Bxd7 {[%clk 0:00:39.7]} 30... Ba8 {[%clk
0:01:06.9]} 31. e5 {[%clk 0:00:35.1]} 31... c5 {[%clk 0:01:03.3]} 32. Nf6+
{[%clk 0:00:18.5]} 32... Kg7 {[%clk 0:01:02.3]} 33. Bh3 {[%clk 0:00:13.9]} 33...
Qb7 {[%clk 0:00:53.6]} 34. Kh2 {[%clk 0:00:14.4]} 34... Qf3 {[%clk 0:00:51.8]}
35. Rd3 {[%clk 0:00:11.8]} 35... Qc6 {[%clk 0:00:46.2]} 36. Ne4 {[%clk
0:00:08.6]} 36... Re8 {[%clk 0:00:41.8]} 37. Nxc3 {[%clk 0:00:08.9]} 37... g5
{[%clk 0:00:38.7]} 38. hxg5 {[%clk 0:00:05.4]} 38... hxg5 {[%clk 0:00:39.6]} 39.
Ne4 {[%clk 0:00:06]} 39... Qg6 {[%clk 0:00:34.4]} 40. f3 {[%clk 0:00:03]} 40...
Rh8 {[%clk 0:00:32.9]} 41. Kg2 {[%clk 0:00:03.6]} 41... Qh5 {[%clk 0:00:27.5]}
42. Rh1 {[%clk 0:00:03.5]} 42... g4 {[%clk 0:00:25.1]} 43. Rxd4 {[%clk
0:00:02.4]} 43... gxh3+ {[%clk 0:00:22.1]} 44. Kf2 {[%clk 0:00:03]} 44... cxd4
{[%clk 0:00:21.9]} 45. Qc5 {[%clk 0:00:03.6]} 45... d3 {[%clk 0:00:20.4]} 46.
Qd4 {[%clk 0:00:03.7]} 46... Bxe4 {[%clk 0:00:18.8]} 47. e6+ {[%clk 0:00:03.6]}
47... f6 {[%clk 0:00:17.7]} 48. Qxe4 {[%clk 0:00:04.2]} 48... Qc5+ {[%clk
0:00:17.3]} 49. Kf1 {[%clk 0:00:01.8]} 49... Qc1+ {[%clk 0:00:17]} 50. Kf2
{[%clk 0:00:02.4]} 50... Qd2+ {[%clk 0:00:11.4]} 51. Kf1 {[%clk 0:00:02.9]}
51... Qg2+ {[%clk 0:00:11.9]} 52. Ke1 {[%clk 0:00:03.5]} 52... Qxh1+ {[%clk
0:00:12.4]} 53. Kd2 {[%clk 0:00:04.1]} 53... Qg2+ {[%clk 0:00:12.5]} 54. Kc3
{[%clk 0:00:04.1]} 54... Rc8+ {[%clk 0:00:12.5]} 55. Kb4 {[%clk 0:00:03.3]}
55... Qd2+ {[%clk 0:00:12.4]} 56. Ka4 {[%clk 0:00:03.3]} 56... Rc5 {[%clk
0:00:10.3]} 57. Qg4+ {[%clk 0:00:01.5]} 57... Kf8 {[%clk 0:00:10.2]} 58. e7+
{[%clk 0:00:01]} 58... Kxe7 {[%clk 0:00:10.5]} 59. Qe4+ {[%clk 0:00:01.8]} 59...
Re5 {[%clk 0:00:09.3]} 60. Qb7+ {[%clk 0:00:02.3]} 60... Kf8 {[%clk 0:00:09.4]}
61. Qc8+ {[%clk 0:00:02.6]} 61... Kg7 {[%clk 0:00:09]} 62. Qd7+ {[%clk
0:00:02.6]} 62... Kg6 {[%clk 0:00:08.7]} 63. Qd8 {[%clk 0:00:02.8]} 63... Rxa5+
{[%clk 0:00:06.7]} 64. Qxa5 {[%clk 0:00:03.7]} 64... Qxa5+ {[%clk 0:00:07.2]}
65. Kxa5 {[%clk 0:00:04.6]} 65... d2 {[%clk 0:00:08.1]} 0-1

[Event "*** Titled Tuesday Blitz"]
[Site "Chess.com"]
[Date "2020.05.12"]
[Round "3"]
[White "Caterpiller35"]
[Black "Snegokhod"]
[Result "1/2-1/2"]
[WhiteElo "2356"]
[BlackElo "2537"]
[TimeControl "180+1"]
[EndTime "10:29:31 PDT"]
[Termination "Game drawn by repetition"]

1. d4 {[%clk 0:03:00]} 1... Nf6 {[%clk 0:02:59.7]} 2. Bg5 {[%clk 0:02:59.4]}
2... Ne4 {[%clk 0:02:59.3]} 3. Bf4 {[%clk 0:02:59.6]} 3... d5 {[%clk 0:02:59.1]}
4. e3 {[%clk 0:02:59.7]} 4... c5 {[%clk 0:02:52.8]} 5. Bd3 {[%clk 0:02:59.7]}
5... cxd4 {[%clk 0:02:51.9]} 6. Bxe4 {[%clk 0:02:59.4]} 6... dxe4 {[%clk
0:02:51.8]} 7. Qxd4 {[%clk 0:03:00.3]} 7... Qxd4 {[%clk 0:02:47.5]} 8. exd4
{[%clk 0:03:01.2]} 8... Nc6 {[%clk 0:02:47.4]} 9. c3 {[%clk 0:03:01.2]} 9... Bf5
{[%clk 0:02:36.3]} 10. Nd2 {[%clk 0:03:00.9]} 10... f6 {[%clk 0:02:33.8]} 11. f3
{[%clk 0:02:58.6]} 11... exf3 {[%clk 0:02:31.1]} 12. Ngxf3 {[%clk 0:02:58.6]}
12... g5 {[%clk 0:02:30.8]} 13. Bg3 {[%clk 0:02:57.8]} 13... h5 {[%clk
0:02:30.1]} 14. O-O {[%clk 0:02:54.7]} 14... Bd3 {[%clk 0:02:28.6]} 15. Rfe1
{[%clk 0:02:44]} 15... h4 {[%clk 0:02:28.6]} 16. Bf2 {[%clk 0:02:34.3]} 16...
Kf7 {[%clk 0:02:23.2]} 17. d5 {[%clk 0:02:27.8]} 17... Nb8 {[%clk 0:02:12.7]}
18. Nd4 {[%clk 0:02:19.6]} 18... Nd7 {[%clk 0:02:11]} 19. Re3 {[%clk 0:02:12.7]}
19... Bg6 {[%clk 0:02:05]} 20. Rae1 {[%clk 0:01:42.8]} 20... Rc8 {[%clk
0:02:04]} 21. Ne6 {[%clk 0:01:32.4]} 21... Ne5 {[%clk 0:01:56.5]} 22. Nxg5+
{[%clk 0:01:21.8]} 22... Kg8 {[%clk 0:01:50.7]} 23. Ngf3 {[%clk 0:01:07.9]}
23... Nd3 {[%clk 0:01:41.7]} 24. Nxh4 {[%clk 0:00:58.8]} 24... Bh7 {[%clk
0:01:34.3]} 25. Rxe7 {[%clk 0:00:54.2]} 25... Bxe7 {[%clk 0:01:24.7]} 26. Rxe7
{[%clk 0:00:53.7]} 26... Nxb2 {[%clk 0:01:23.4]} 27. Rxb7 {[%clk 0:00:51.2]}
27... Nd3 {[%clk 0:01:12.2]} 28. Bd4 {[%clk 0:00:50.1]} 28... Ne5 {[%clk
0:01:03.8]} 29. Nhf3 {[%clk 0:00:44.6]} 29... Nxf3+ {[%clk 0:00:59.6]} 30. Nxf3
{[%clk 0:00:31.3]} 30... Be4 {[%clk 0:00:59.3]} 31. Bxf6 {[%clk 0:00:29]} 31...
Bxd5 {[%clk 0:00:50.4]} 32. Rg7+ {[%clk 0:00:26.5]} 32... Kf8 {[%clk 0:00:50.2]}
33. Ne5 {[%clk 0:00:21.9]} 33... Rh6 {[%clk 0:00:32.3]} 34. Nd7+ {[%clk
0:00:13.6]} 34... Ke8 {[%clk 0:00:32.6]} 35. Re7+ {[%clk 0:00:13.8]} 35... Kd8
{[%clk 0:00:33.1]} 36. Bg5 {[%clk 0:00:09.3]} 36... Re6 {[%clk 0:00:26.5]} 37.
Rxe6+ {[%clk 0:00:05.1]} 37... Kxd7 {[%clk 0:00:26.9]} 38. Re7+ {[%clk
0:00:05.5]} 38... Kd6 {[%clk 0:00:27]} 39. Rxa7 {[%clk 0:00:06.4]} 39... Rxc3
{[%clk 0:00:26.2]} 40. Bf4+ {[%clk 0:00:06.6]} 40... Ke6 {[%clk 0:00:25.7]} 41.
Ra6+ {[%clk 0:00:06.4]} 41... Kf5 {[%clk 0:00:25.2]} 42. Ra5 {[%clk 0:00:05.8]}
42... Ke6 {[%clk 0:00:23.8]} 43. h4 {[%clk 0:00:05.1]} 43... Rc2 {[%clk
0:00:23.1]} 44. Rxd5 {[%clk 0:00:04.7]} 44... Kxd5 {[%clk 0:00:22.5]} 45. Kh2
{[%clk 0:00:05.4]} 45... Ke4 {[%clk 0:00:22.3]} 46. Bg5 {[%clk 0:00:05.8]} 46...
Rxa2 {[%clk 0:00:20.6]} 47. Kg3 {[%clk 0:00:05.8]} 47... Kf5 {[%clk 0:00:20.5]}
48. Be3 {[%clk 0:00:05.3]} 48... Ra3 {[%clk 0:00:20.4]} 49. Kf3 {[%clk
0:00:05.6]} 49... Ra4 {[%clk 0:00:18.9]} 50. g3 {[%clk 0:00:05.7]} 50... Rb4
{[%clk 0:00:17.2]} 51. h5 {[%clk 0:00:06]} 51... Ra4 {[%clk 0:00:15.6]} 52. h6
{[%clk 0:00:06.3]} 52... Kg6 {[%clk 0:00:15.5]} 53. Bf4 {[%clk 0:00:06.2]} 53...
Ra3+ {[%clk 0:00:14.9]} 54. Kg4 {[%clk 0:00:06.6]} 54... Ra5 {[%clk 0:00:15.4]}
55. Kf3 {[%clk 0:00:06.7]} 55... Rb5 {[%clk 0:00:16]} 56. Ke4 {[%clk 0:00:06.9]}
56... Rc5 {[%clk 0:00:16.5]} 57. Kd4 {[%clk 0:00:07.1]} 57... Rb5 {[%clk
0:00:17.2]} 58. Ke4 {[%clk 0:00:07.5]} 58... Ra5 {[%clk 0:00:17.5]} 59. Kf3
{[%clk 0:00:07.7]} 59... Rb5 {[%clk 0:00:17.9]} 60. Ke4 {[%clk 0:00:08.2]}
1/2-1/2

[Event "*** Titled Tuesday Blitz"]
[Site "Chess.com"]
[Date "2020.05.12"]
[Round "3"]
[White "MalakhovKirill"]
[Black "profofchess"]
[Result "0-1"]
[WhiteElo "2635"]
[BlackElo "2425"]
[TimeControl "180+1"]
[EndTime "10:29:36 PDT"]
[Termination "profofchess won by checkmate"]

1. c4 {[%clk 0:03:00.8]} 1... e5 {[%clk 0:02:59.8]} 2. Nc3 {[%clk 0:03:00.9]}
2... Nc6 {[%clk 0:03:00.4]} 3. g3 {[%clk 0:03:00.6]} 3... Bc5 {[%clk 0:03:01]}
4. Bg2 {[%clk 0:03:00.6]} 4... a6 {[%clk 0:03:01.3]} 5. e3 {[%clk 0:03:01]} 5...
Ba7 {[%clk 0:03:01.1]} 6. Nge2 {[%clk 0:03:01.4]} 6... d6 {[%clk 0:03:00.1]} 7.
h4 {[%clk 0:03:01.6]} 7... Bg4 {[%clk 0:02:55.8]} 8. a3 {[%clk 0:02:59.9]} 8...
Qd7 {[%clk 0:02:53.8]} 9. b4 {[%clk 0:02:59.1]} 9... Nge7 {[%clk 0:02:39.4]} 10.
b5 {[%clk 0:02:59.1]} 10... axb5 {[%clk 0:02:38.4]} 11. Nxb5 {[%clk 0:02:59.4]}
11... Bb6 {[%clk 0:02:35.7]} 12. Bb2 {[%clk 0:02:57.3]} 12... O-O {[%clk
0:02:27.6]} 13. O-O {[%clk 0:02:56.8]} 13... Bh3 {[%clk 0:02:23.9]} 14. d4
{[%clk 0:02:55.5]} 14... Bxg2 {[%clk 0:02:10.3]} 15. Kxg2 {[%clk 0:02:55.6]}
15... exd4 {[%clk 0:02:00.9]} 16. exd4 {[%clk 0:02:55.4]} 16... Nf5 {[%clk
0:01:51.8]} 17. Nf4 {[%clk 0:02:43.9]} 17... Na5 {[%clk 0:01:38.1]} 18. Qd3
{[%clk 0:02:40.7]} 18... c6 {[%clk 0:01:29.1]} 19. Nc3 {[%clk 0:02:40.2]} 19...
Nb3 {[%clk 0:01:29.1]} 20. Rad1 {[%clk 0:02:39.6]} 20... Nbxd4 {[%clk
0:01:21.9]} 21. Ne4 {[%clk 0:02:35.9]} 21... c5 {[%clk 0:01:00.7]} 22. Nd5
{[%clk 0:02:35.2]} 22... Bd8 {[%clk 0:01:00.4]} 23. Rh1 {[%clk 0:02:13.7]} 23...
b5 {[%clk 0:01:00.2]} 24. h5 {[%clk 0:02:07]} 24... bxc4 {[%clk 0:00:59.6]} 25.
Qxc4 {[%clk 0:02:06.9]} 25... h6 {[%clk 0:00:53.5]} 26. Rhe1 {[%clk 0:01:47.8]}
26... Ra4 {[%clk 0:00:39.8]} 27. Qa2 {[%clk 0:01:37.6]} 27... Qc6 {[%clk
0:00:39.9]} 28. f3 {[%clk 0:01:36.3]} 28... Bg5 {[%clk 0:00:20.5]} 29. Bc1
{[%clk 0:01:02.9]} 29... Bxc1 {[%clk 0:00:19.5]} 30. Rxc1 {[%clk 0:01:01.7]}
30... Qa8 {[%clk 0:00:19.2]} 31. Rc3 {[%clk 0:00:34.4]} 31... Nb5 {[%clk
0:00:18.8]} 32. Rd3 {[%clk 0:00:28]} 32... Rxa3 {[%clk 0:00:18.9]} 33. Qd2
{[%clk 0:00:23.4]} 33... Ra2 {[%clk 0:00:17.4]} 34. Re2 {[%clk 0:00:17.9]} 34...
Rxd2 {[%clk 0:00:17]} 35. Rexd2 {[%clk 0:00:18.6]} 35... Nfd4 {[%clk 0:00:13.1]}
36. Nf4 {[%clk 0:00:18.7]} 36... Qa1 {[%clk 0:00:11.1]} 37. g4 {[%clk
0:00:19.1]} 37... Ra8 {[%clk 0:00:09.7]} 38. g5 {[%clk 0:00:19.6]} 38... Ra2
{[%clk 0:00:08.1]} 39. gxh6 {[%clk 0:00:20.1]} 39... gxh6 {[%clk 0:00:07.8]} 40.
Nf6+ {[%clk 0:00:19.6]} 40... Kg7 {[%clk 0:00:07.2]} 41. N6d5 {[%clk 0:00:20]}
41... Rxd2+ {[%clk 0:00:06.6]} 42. Rxd2 {[%clk 0:00:20.5]} 42... Qc1 {[%clk
0:00:06.8]} 43. Rf2 {[%clk 0:00:20.6]} 43... Nc3 {[%clk 0:00:05.8]} 44. Kh2
{[%clk 0:00:21.1]} 44... Nxd5 {[%clk 0:00:05.7]} 45. Rg2+ {[%clk 0:00:21.5]}
45... Kf8 {[%clk 0:00:04.4]} 46. Nxd5 {[%clk 0:00:22.2]} 46... Nxf3+ {[%clk
0:00:04.8]} 47. Kg3 {[%clk 0:00:22.4]} 47... Ne5 {[%clk 0:00:04.8]} 48. Nf4
{[%clk 0:00:22.4]} 48... Qe3+ {[%clk 0:00:04.5]} 49. Kh2 {[%clk 0:00:22.8]}
49... Qxf4+ {[%clk 0:00:05.3]} 50. Rg3 {[%clk 0:00:23.5]} 50... Qxg3+ {[%clk
0:00:05.3]} 51. Kxg3 {[%clk 0:00:24.4]} 51... c4 {[%clk 0:00:06.2]} 52. Kf4
{[%clk 0:00:25]} 52... c3 {[%clk 0:00:06.8]} 53. Ke3 {[%clk 0:00:25.9]} 53... d5
{[%clk 0:00:06.7]} 54. Ke2 {[%clk 0:00:26.5]} 54... c2 {[%clk 0:00:07.4]} 55.
Kd2 {[%clk 0:00:27.4]} 55... d4 {[%clk 0:00:08.3]} 56. Kxc2 {[%clk 0:00:28.3]}
56... d3+ {[%clk 0:00:09.2]} 57. Kd2 {[%clk 0:00:28.8]} 57... Ke7 {[%clk
0:00:10.1]} 58. Ke3 {[%clk 0:00:29.7]} 58... Kf6 {[%clk 0:00:10.8]} 59. Kf4
{[%clk 0:00:30.3]} 59... Ke6 {[%clk 0:00:10.9]} 60. Ke4 {[%clk 0:00:30.9]} 60...
f5+ {[%clk 0:00:11.1]} 61. Ke3 {[%clk 0:00:31.8]} 61... Kd5 {[%clk 0:00:11]} 62.
Kd2 {[%clk 0:00:32.3]} 62... Kd4 {[%clk 0:00:11.1]} 63. Ke1 {[%clk 0:00:33.1]}
63... Nc4 {[%clk 0:00:12]} 64. Kd1 {[%clk 0:00:34]} 64... Kc3 {[%clk 0:00:12.4]}
65. Ke1 {[%clk 0:00:34.9]} 65... d2+ {[%clk 0:00:11.6]} 66. Kf2 {[%clk
0:00:35.8]} 66... f4 {[%clk 0:00:12.2]} 67. Kf3 {[%clk 0:00:36.7]} 67... d1=Q+
{[%clk 0:00:11.5]} 68. Kxf4 {[%clk 0:00:37.6]} 68... Qd5 {[%clk 0:00:11.2]} 69.
Kg4 {[%clk 0:00:38.4]} 69... Na3 {[%clk 0:00:11.6]} 70. Kf4 {[%clk 0:00:39.3]}
70... Kd4 {[%clk 0:00:11.9]} 71. Kg3 {[%clk 0:00:39.4]} 71... Ke4 {[%clk
0:00:11.9]} 72. Kg4 {[%clk 0:00:40.3]} 72... Qf5+ {[%clk 0:00:12.3]} 73. Kg3
{[%clk 0:00:40.6]} 73... Qf3+ {[%clk 0:00:12.3]} 74. Kh4 {[%clk 0:00:41.1]}
74... Qf4+ {[%clk 0:00:12.4]} 75. Kh3 {[%clk 0:00:41.4]} 75... Qg5 {[%clk
0:00:13.3]} 76. Kh2 {[%clk 0:00:42.2]} 76... Kf3 {[%clk 0:00:14.2]} 77. Kh3
{[%clk 0:00:43.1]} 77... Qg3# {[%clk 0:00:14.2]} 0-1

[Event "*** Titled Tuesday Blitz"]
[Site "Chess.com"]
[Date "2020.05.12"]
[Round "3"]
[White "realmadridtv"]
[Black "BAS8892"]
[Result "0-1"]
[WhiteElo "2450"]
[BlackElo "2710"]
[TimeControl "180+1"]
[EndTime "10:29:37 PDT"]
[Termination "BAS8892 won by resignation"]

1. d4 {[%clk 0:03:00.9]} 1... d5 {[%clk 0:02:59.4]} 2. c4 {[%clk 0:02:58.9]}
2... c6 {[%clk 0:02:59.2]} 3. Nf3 {[%clk 0:02:58.5]} 3... Nf6 {[%clk 0:02:58.4]}
4. g3 {[%clk 0:02:58.7]} 4... Bf5 {[%clk 0:02:48.4]} 5. Bg2 {[%clk 0:02:54.2]}
5... e6 {[%clk 0:02:45.2]} 6. Qb3 {[%clk 0:02:49.5]} 6... Qb6 {[%clk 0:02:44.1]}
7. Nc3 {[%clk 0:02:48.3]} 7... Nbd7 {[%clk 0:02:39]} 8. O-O {[%clk 0:02:38.2]}
8... h6 {[%clk 0:02:35.2]} 9. c5 {[%clk 0:02:32.6]} 9... Qxb3 {[%clk 0:02:34]}
10. axb3 {[%clk 0:02:33.5]} 10... a6 {[%clk 0:02:34.2]} 11. b4 {[%clk
0:02:31.9]} 11... Rc8 {[%clk 0:02:33.1]} 12. Nd2 {[%clk 0:02:24.2]} 12... Be7
{[%clk 0:02:32.3]} 13. f3 {[%clk 0:02:22.3]} 13... O-O {[%clk 0:02:11.2]} 14. e4
{[%clk 0:02:20.7]} 14... Bg6 {[%clk 0:02:10.8]} 15. e5 {[%clk 0:02:08.8]} 15...
Ne8 {[%clk 0:02:09.5]} 16. f4 {[%clk 0:02:09.1]} 16... Nc7 {[%clk 0:02:01.9]}
17. h4 {[%clk 0:02:02.4]} 17... f6 {[%clk 0:01:59.8]} 18. Bh3 {[%clk 0:01:57.3]}
18... Rce8 {[%clk 0:01:56]} 19. Nf3 {[%clk 0:01:48]} 19... Be4 {[%clk 0:01:46]}
20. Nd2 {[%clk 0:01:27.1]} 20... Bd3 {[%clk 0:01:40.9]} 21. Rf3 {[%clk
0:01:24.9]} 21... Bc2 {[%clk 0:01:38.9]} 22. Rf2 {[%clk 0:01:22.2]} 22... g5
{[%clk 0:01:29.9]} 23. hxg5 {[%clk 0:01:19.3]} 23... hxg5 {[%clk 0:01:27.4]} 24.
Nf3 {[%clk 0:01:16.7]} 24... Be4 {[%clk 0:01:22.2]} 25. fxg5 {[%clk 0:01:06.9]}
25... Bxf3 {[%clk 0:01:14.8]} 26. gxf6 {[%clk 0:01:05.6]} 26... Nxf6 {[%clk
0:00:36.5]} 27. exf6 {[%clk 0:00:58.6]} 27... Rxf6 {[%clk 0:00:33.1]} 28. Bf4
{[%clk 0:00:59.1]} 28... Rxf4 {[%clk 0:00:28.1]} 29. gxf4 {[%clk 0:00:58.1]}
29... Bh5 {[%clk 0:00:27.6]} 30. f5 {[%clk 0:00:50.8]} 30... Bf6 {[%clk
0:00:27.2]} 31. Rg2+ {[%clk 0:00:43.1]} 31... Kh8 {[%clk 0:00:26.4]} 32. Ne2
{[%clk 0:00:31.4]} 32... e5 {[%clk 0:00:24.8]} 33. dxe5 {[%clk 0:00:28.7]} 33...
Bxe5 {[%clk 0:00:23.8]} 34. Kh1 {[%clk 0:00:22.8]} 34... Bf3 {[%clk 0:00:22.4]}
35. Rf1 {[%clk 0:00:20.8]} 35... Bxg2+ {[%clk 0:00:21.4]} 36. Kxg2 {[%clk
0:00:20.1]} 36... Bxb2 {[%clk 0:00:20]} 37. f6 {[%clk 0:00:19.4]} 37... Rxe2+
{[%clk 0:00:18.7]} 38. Kf3 {[%clk 0:00:19.8]} 38... Re8 {[%clk 0:00:16.2]} 39.
f7 {[%clk 0:00:18.1]} 39... Rf8 {[%clk 0:00:16]} 40. Kg4 {[%clk 0:00:17.8]}
40... Kg7 {[%clk 0:00:15.9]} 41. Kh5 {[%clk 0:00:17.6]} 41... Rxf7 {[%clk
0:00:15.2]} 42. Rb1 {[%clk 0:00:17.9]} 42... Bc3 {[%clk 0:00:14.5]} 43. Rb3
{[%clk 0:00:17.8]} 43... Nb5 {[%clk 0:00:14.1]} 44. Bg4 {[%clk 0:00:16.7]} 44...
Rf4 {[%clk 0:00:13.6]} 45. Kg5 {[%clk 0:00:16.5]} 45... Rxb4 {[%clk 0:00:13.2]}
46. Rxb4 {[%clk 0:00:16.7]} 46... Bxb4 {[%clk 0:00:13.4]} 47. Bc8 {[%clk
0:00:17.6]} 47... Bxc5 {[%clk 0:00:12.9]} 48. Bxb7 {[%clk 0:00:18.1]} 48... d4
{[%clk 0:00:11.9]} 49. Bxc6 {[%clk 0:00:17.2]} 49... d3 {[%clk 0:00:12]} 50. Kf4
{[%clk 0:00:17.3]} 50... d2 {[%clk 0:00:11.5]} 51. Bf3 {[%clk 0:00:17.5]} 51...
Nc3 {[%clk 0:00:11.5]} 52. Ke5 {[%clk 0:00:16.9]} 52... d1=Q {[%clk 0:00:11.7]}
53. Bxd1 {[%clk 0:00:17.1]} 53... Nxd1 {[%clk 0:00:12.6]} 54. Kd5 {[%clk
0:00:17.9]} 54... Be7 {[%clk 0:00:13.1]} 55. Kc4 {[%clk 0:00:18]} 55... a5
{[%clk 0:00:14]} 56. Kb3 {[%clk 0:00:18.4]} 56... Bd8 {[%clk 0:00:13.8]} 57. Ka4
{[%clk 0:00:18.6]} 57... Ne3 {[%clk 0:00:14.1]} 58. Kb5 {[%clk 0:00:19.5]} 58...
Kf6 {[%clk 0:00:14.5]} 59. Ka4 {[%clk 0:00:20.4]} 59... Ke5 {[%clk 0:00:15]} 60.
Kb5 {[%clk 0:00:21.3]} 60... Kd4 {[%clk 0:00:15.4]} 61. Ka4 {[%clk 0:00:22.2]}
61... Nc4 {[%clk 0:00:15.3]} 62. Kb5 {[%clk 0:00:23.1]} 62... Nd6+ {[%clk
0:00:15.5]} 63. Ka4 {[%clk 0:00:24]} 63... Kc5 {[%clk 0:00:15.9]} 64. Kb3 {[%clk
0:00:24.5]} 64... Kb5 {[%clk 0:00:16.5]} 65. Ka3 {[%clk 0:00:24.8]} 65... a4
{[%clk 0:00:17.4]} 66. Ka2 {[%clk 0:00:25.7]} 66... Bf6 {[%clk 0:00:17.6]} 67.
Kb1 {[%clk 0:00:25.8]} 67... Nc4 {[%clk 0:00:17.8]} 68. Ka2 {[%clk 0:00:26.7]}
68... Kb4 {[%clk 0:00:18]} 69. Kb1 {[%clk 0:00:27.6]} 69... Kb3 {[%clk
0:00:17.9]} 70. Kc1 {[%clk 0:00:27.4]} 70... a3 {[%clk 0:00:18.3]} 71. Kd1
{[%clk 0:00:27.5]} 71... a2 {[%clk 0:00:18.8]} 72. Ke2 {[%clk 0:00:28.4]} 0-1